[Event "Titled Tuesday Blitz March 22 Late 2022"]
[White "Taboas Rodriguez, Daniel"]
[Black "Zhigalko, Sergei"]
[WhiteFideId "2208466"]
[BlackFideId "13502956"]
[WhiteElo "2429"]
[BlackElo "2662"]
[Result "1-0"]
[Round "05"]
[TimeControl "180+1"]
[Date "2022.03.22"]
[WhiteClock "0:00:32"]
[BlackClock "0:00:04"]

1. d4 {[%clk 0:02:55]}  Nf6 {[%clk 0:02:59]} 2. Nf3 {[%clk 0:02:55]}  e6 {[%clk 0:03:00]} 3. c4 {[%clk 0:02:55]}  b6 {[%clk 0:02:58]} 4. Nc3 {[%clk 0:02:55]}  Bb4 {[%clk 0:02:58]} 5. Qc2 {[%clk 0:02:56]}  Bb7 {[%clk 0:02:58]} 6. a3 {[%clk 0:02:57]}  Bxc3+ {[%clk 0:02:58]} 7. Qxc3 {[%clk 0:02:57]}  O-O {[%clk 0:02:49]} 8. g3 {[%clk 0:02:57]}  a5 {[%clk 0:02:46]} 9. Bg2 {[%clk 0:02:57]}  a4 {[%clk 0:02:46]} 10. O-O {[%clk 0:02:57]}  d6 {[%clk 0:02:40]} 11. Re1 {[%clk 0:02:44]}  h6 {[%clk 0:02:39]} 12. Bf4 {[%clk 0:02:41]}  Nbd7 {[%clk 0:02:36]} 13. Rad1 {[%clk 0:02:40]}  Re8 {[%clk 0:02:36]} 14. Qc1 {[%clk 0:02:31]}  Qe7 {[%clk 0:02:34]} 15. Be3 {[%clk 0:02:13]}  c5 {[%clk 0:02:12]} 16. Bf4 {[%clk 0:01:58]}  cxd4 {[%clk 0:02:03]} 17. Nxd4 {[%clk 0:01:58]}  Bxg2 {[%clk 0:02:03]} 18. Kxg2 {[%clk 0:01:59]}  e5 {[%clk 0:01:33]} 19. Nc6 {[%clk 0:01:58]}  Qe6 {[%clk 0:01:33]} 20. Be3 {[%clk 0:01:58]}  Rec8 {[%clk 0:01:25]} 21. Nb4 {[%clk 0:01:55]}  Rxc4 {[%clk 0:01:24]} 22. Qd2 {[%clk 0:01:56]}  Ne4 {[%clk 0:00:53]} 23. Qd5 {[%clk 0:01:38]}  Qxd5 {[%clk 0:00:43]} 24. Nxd5 {[%clk 0:01:37]}  b5 {[%clk 0:00:36]} 25. f3 {[%clk 0:01:34]}  Nef6 {[%clk 0:00:16]} 26. Nxf6+ {[%clk 0:01:33]}  Nxf6 {[%clk 0:00:16]} 27. Rxd6 {[%clk 0:01:34]}  b4 {[%clk 0:00:11]} 28. Rc1 {[%clk 0:01:19]}  Rac8 {[%clk 0:00:09]} 29. Rxc4 {[%clk 0:01:19]}  Rxc4 {[%clk 0:00:10]} 30. axb4 {[%clk 0:01:08]}  Rxb4 {[%clk 0:00:10]} 31. Rb6 {[%clk 0:01:09]}  Rxb6 {[%clk 0:00:04]} 32. Bxb6 {[%clk 0:01:10]}  Kf8 {[%clk 0:00:04]} 33. Bc7 {[%clk 0:01:09]}  e4 {[%clk 0:00:02]} 34. Kf2 {[%clk 0:01:08]}  Ke7 {[%clk 0:00:03]} 35. Be5 {[%clk 0:01:07]}  exf3 {[%clk 0:00:03]} 36. exf3 {[%clk 0:01:07]}  Ke6 {[%clk 0:00:03]} 37. Bd4 {[%clk 0:00:59]}  Kd5 {[%clk 0:00:03]} 38. Bxf6 {[%clk 0:00:59]}  gxf6 {[%clk 0:00:04]} 39. Ke3 {[%clk 0:00:57]}  Kc4 {[%clk 0:00:05]} 40. Kd2 {[%clk 0:00:58]}  Kb3 {[%clk 0:00:05]} 41. Kc1 {[%clk 0:00:57]}  f5 {[%clk 0:00:05]} 42. f4 {[%clk 0:00:51]}  Kc4 {[%clk 0:00:03]} 43. Kc2 {[%clk 0:00:51]}  Kd4 {[%clk 0:00:03]} 44. Kd2 {[%clk 0:00:51]}  Kc4 {[%clk 0:00:03]} 45. Kc2 {[%clk 0:00:51]}  h5 {[%clk 0:00:04]} 46. Kd2 {[%clk 0:00:46]}  Kd4 {[%clk 0:00:04]} 47. Ke2 {[%clk 0:00:45]}  Ke4 {[%clk 0:00:02]} 48. h3 {[%clk 0:00:41]}  h4 {[%clk 0:00:02]} 49. gxh4 {[%clk 0:00:39]}  Kxf4 {[%clk 0:00:03]} 50. Kf2 {[%clk 0:00:39]}  f6 {[%clk 0:00:02]} 51. Kf1 {[%clk 0:00:35]}  Ke5 {[%clk 0:00:01]} 52. Ke2 {[%clk 0:00:34]}  Kf4 {[%clk 0:00:01]} 53. Kf2 {[%clk 0:00:34]}  Ke4 {[%clk 0:00:01]} 54. h5 {[%clk 0:00:33]}  Ke5 {[%clk 0:00:02]} 55. h6 {[%clk 0:00:33]}  a3 {[%clk 0:00:02]} 56. h7 {[%clk 0:00:33]}  axb2 {[%clk 0:00:03]} 57. h8=Q {[%clk 0:00:33]}  b1=Q {[%clk 0:00:04]} 58. Qe8+ {[%clk 0:00:33]}  Kf4 {[%clk 0:00:04]} 59. Qe3# {[%clk 0:00:32]} 1-0


[Site "https://www.chess.com"]

[Event "Titled Tuesday Blitz March 22 Late 2022"]
[White "Thavandiran, Shiyam"]
[Black "Jacobson, Aaron"]
[WhiteFideId "2605058"]
[BlackFideId "2089912"]
[WhiteElo "2357"]
[BlackElo "2265"]
[Result "1-0"]
[Round "05"]
[TimeControl "180+1"]
[Date "2022.03.22"]
[WhiteClock "0:00:36"]
[BlackClock "0:00:06"]

1. e4 {[%clk 0:03:00]}  d5 {[%clk 0:02:53]} 2. exd5 {[%clk 0:02:57]}  Nf6 {[%clk 0:02:54]} 3. Be2 {[%clk 0:02:50]}  Qxd5 {[%clk 0:02:41]} 4. Nf3 {[%clk 0:02:49]}  Nc6 {[%clk 0:02:38]} 5. d4 {[%clk 0:02:35]}  Bg4 {[%clk 0:02:38]} 6. h3 {[%clk 0:02:30]}  Bxf3 {[%clk 0:02:38]} 7. Bxf3 {[%clk 0:02:30]}  Qd7 {[%clk 0:02:39]} 8. Be3 {[%clk 0:02:24]}  O-O-O {[%clk 0:02:39]} 9. c3 {[%clk 0:02:23]}  e5 {[%clk 0:02:32]} 10. Qb3 {[%clk 0:01:52]}  exd4 {[%clk 0:02:26]} 11. cxd4 {[%clk 0:01:52]}  Bb4+ {[%clk 0:02:11]} 12. Nc3 {[%clk 0:01:49]}  Nxd4 {[%clk 0:01:50]} 13. Bxd4 {[%clk 0:01:47]}  Qxd4 {[%clk 0:01:48]} 14. O-O {[%clk 0:01:46]}  c6 {[%clk 0:01:45]} 15. Rad1 {[%clk 0:01:35]}  Qb6 {[%clk 0:01:27]} 16. Qxf7 {[%clk 0:01:23]}  Qc7 {[%clk 0:01:14]} 17. Qb3 {[%clk 0:01:19]}  Bc5 {[%clk 0:01:06]} 18. Qc4 {[%clk 0:01:10]}  Bd6 {[%clk 0:00:42]} 19. b4 {[%clk 0:01:05]}  Kb8 {[%clk 0:00:36]} 20. b5 {[%clk 0:00:59]}  cxb5 {[%clk 0:00:36]} 21. Qxb5 {[%clk 0:01:00]}  Bh2+ {[%clk 0:00:10]} 22. Kh1 {[%clk 0:01:00]}  Be5 {[%clk 0:00:11]} 23. Na4 {[%clk 0:00:55]}  a6 {[%clk 0:00:09]} 24. Qb3 {[%clk 0:00:37]}  Rxd1 {[%clk 0:00:06]} 25. Rxd1 {[%clk 0:00:37]}  Rd8 {[%clk 0:00:06]} 26. Rxd8+ {[%clk 0:00:36]}  Qxd8 {[%clk 0:00:06]} 27. Qxb7# {[%clk 0:00:36]} 1-0


[Site "https://www.chess.com"]

[Event "Titled Tuesday Blitz March 22 Late 2022"]
[White "Vasquez Schroeder, Rodrigo"]
[Black "Kollars, Dmitrij"]
[WhiteFideId "3400042"]
[BlackFideId "12909572"]
[WhiteElo "2561"]
[BlackElo "2584"]
[Result "1-0"]
[Round "05"]
[TimeControl "180+1"]
[Date "2022.03.22"]
[WhiteClock "0:00:46"]
[BlackClock "0:00:10"]

1. e4 {[%clk 0:03:00]}  c5 {[%clk 0:02:59]} 2. Nf3 {[%clk 0:03:00]}  d6 {[%clk 0:02:59]} 3. d4 {[%clk 0:03:00]}  cxd4 {[%clk 0:03:00]} 4. Nxd4 {[%clk 0:03:01]}  Nf6 {[%clk 0:03:01]} 5. Nc3 {[%clk 0:03:01]}  Nc6 {[%clk 0:03:02]} 6. Bg5 {[%clk 0:03:01]}  e6 {[%clk 0:03:02]} 7. Qd2 {[%clk 0:03:02]}  a6 {[%clk 0:03:03]} 8. O-O-O {[%clk 0:03:02]}  Bd7 {[%clk 0:03:03]} 9. f4 {[%clk 0:03:01]}  h6 {[%clk 0:03:03]} 10. Bh4 {[%clk 0:03:01]}  Be7 {[%clk 0:03:04]} 11. Nf3 {[%clk 0:02:58]}  Qc7 {[%clk 0:03:03]} 12. Bxf6 {[%clk 0:02:57]}  Bxf6 {[%clk 0:03:02]} 13. Qxd6 {[%clk 0:02:56]}  Qxd6 {[%clk 0:03:02]} 14. Rxd6 {[%clk 0:02:55]}  g5 {[%clk 0:02:55]} 15. g3 {[%clk 0:02:36]}  gxf4 {[%clk 0:02:52]} 16. gxf4 {[%clk 0:02:37]}  Rg8 {[%clk 0:02:52]} 17. Bh3 {[%clk 0:02:31]}  Be7 {[%clk 0:02:36]} 18. Rd3 {[%clk 0:02:30]}  Nb4 {[%clk 0:02:32]} 19. Rd2 {[%clk 0:02:30]}  Bc5 {[%clk 0:02:32]} 20. Re1 {[%clk 0:02:28]}  Ke7 {[%clk 0:02:15]} 21. a3 {[%clk 0:02:23]}  Nc6 {[%clk 0:02:13]} 22. e5 {[%clk 0:02:23]}  Ba7 {[%clk 0:01:57]} 23. Ne4 {[%clk 0:02:23]}  Rac8 {[%clk 0:01:42]} 24. c3 {[%clk 0:02:06]}  Rgd8 {[%clk 0:01:35]} 25. Kc2 {[%clk 0:02:05]}  Na5 {[%clk 0:01:34]} 26. Nd6 {[%clk 0:01:56]}  Ba4+ {[%clk 0:01:32]} 27. Kb1 {[%clk 0:01:56]}  Rc7 {[%clk 0:01:25]} 28. Nd4 {[%clk 0:01:53]}  Nc4 {[%clk 0:00:58]} 29. Nxc4 {[%clk 0:01:39]}  Rxc4 {[%clk 0:00:59]} 30. Re4 {[%clk 0:01:31]}  Rc7 {[%clk 0:00:47]} 31. Kc1 {[%clk 0:01:27]}  Rg8 {[%clk 0:00:36]} 32. Rg2 {[%clk 0:01:20]}  Rd8 {[%clk 0:00:31]} 33. Rd2 {[%clk 0:01:10]}  Rg8 {[%clk 0:00:30]} 34. Re1 {[%clk 0:01:05]}  Rd7 {[%clk 0:00:24]} 35. f5 {[%clk 0:01:01]}  exf5 {[%clk 0:00:21]} 36. Nxf5+ {[%clk 0:01:00]}  Kf8 {[%clk 0:00:21]} 37. Nd6 {[%clk 0:00:58]}  Rc7 {[%clk 0:00:18]} 38. Kb1 {[%clk 0:00:56]}  Rg5 {[%clk 0:00:17]} 39. Nf5 {[%clk 0:00:52]}  Bd7 {[%clk 0:00:14]} 40. Rf1 {[%clk 0:00:52]}  Rh5 {[%clk 0:00:10]} 41. Bg4 {[%clk 0:00:51]}  Rg5 {[%clk 0:00:10]} 42. Bh3 {[%clk 0:00:47]}  Rh5 {[%clk 0:00:10]} 43. Rd3 {[%clk 0:00:46]}  Be6 {[%clk 0:00:10]} 44. Rd8# {[%clk 0:00:46]} 1-0


[Site "https://www.chess.com"]

[Event "Titled Tuesday Blitz March 22 Late 2022"]
[White "Vifleemskaia, Svetlana"]
[Black "Villegas, Pierre"]
[WhiteFideId "4129490"]
[BlackFideId "654183"]
[WhiteElo "1901"]
[BlackElo "2395"]
[Result "0-1"]
[Round "05"]
[TimeControl "180+1"]
[Date "2022.03.22"]
[WhiteClock "0:00:03"]
[BlackClock "0:00:18"]

1. d4 {[%clk 0:02:56]}  Nf6 {[%clk 0:02:59]} 2. c4 {[%clk 0:02:55]}  e6 {[%clk 0:02:58]} 3. Nc3 {[%clk 0:02:55]}  Bb4 {[%clk 0:02:52]} 4. e3 {[%clk 0:02:55]}  O-O {[%clk 0:02:50]} 5. Ne2 {[%clk 0:02:56]}  c6 {[%clk 0:02:46]} 6. a3 {[%clk 0:02:54]}  Ba5 {[%clk 0:02:43]} 7. b4 {[%clk 0:02:54]}  Bc7 {[%clk 0:02:43]} 8. f4 {[%clk 0:02:53]}  d5 {[%clk 0:02:42]} 9. c5 {[%clk 0:02:52]}  Nbd7 {[%clk 0:02:40]} 10. Ng3 {[%clk 0:02:50]}  a5 {[%clk 0:02:19]} 11. Bd2 {[%clk 0:02:48]}  e5 {[%clk 0:01:54]} 12. fxe5 {[%clk 0:02:45]}  Nxe5 {[%clk 0:01:55]} 13. dxe5 {[%clk 0:02:44]}  Bxe5 {[%clk 0:01:56]} 14. Ra2 {[%clk 0:01:43]}  Ng4 {[%clk 0:01:39]} 15. Qf3 {[%clk 0:01:34]}  Qh4 {[%clk 0:01:33]} 16. Bd3 {[%clk 0:01:17]}  Nxh2 {[%clk 0:01:21]} 17. Kf2 {[%clk 0:01:07]}  Nxf3 {[%clk 0:01:11]} 18. Rxh4 {[%clk 0:01:04]}  Nxh4 {[%clk 0:01:12]} 19. b5 {[%clk 0:00:59]}  f5 {[%clk 0:01:06]} 20. Nce2 {[%clk 0:00:50]}  Bd7 {[%clk 0:00:59]} 21. a4 {[%clk 0:00:48]}  Ng6 {[%clk 0:00:55]} 22. Nh5 {[%clk 0:00:26]}  f4 {[%clk 0:00:41]} 23. exf4 {[%clk 0:00:22]}  Bg4 {[%clk 0:00:41]} 24. Bxg6 {[%clk 0:00:18]}  hxg6 {[%clk 0:00:37]} 25. Nhg3 {[%clk 0:00:17]}  g5 {[%clk 0:00:36]} 26. f5 {[%clk 0:00:14]}  Bxf5 {[%clk 0:00:30]} 27. Nxf5 {[%clk 0:00:13]}  Rxf5+ {[%clk 0:00:31]} 28. Ke3 {[%clk 0:00:13]}  Re8 {[%clk 0:00:30]} 29. Kd3 {[%clk 0:00:12]}  Rf2 {[%clk 0:00:26]} 30. Bxa5 {[%clk 0:00:11]}  Rxg2 {[%clk 0:00:26]} 31. bxc6 {[%clk 0:00:09]}  bxc6 {[%clk 0:00:26]} 32. Bd2 {[%clk 0:00:06]}  Bb8 {[%clk 0:00:25]} 33. Nd4 {[%clk 0:00:04]}  Ba7 {[%clk 0:00:22]} 34. Nxc6 {[%clk 0:00:03]}  Bxc5 {[%clk 0:00:22]} 35. a5 {[%clk 0:00:03]}  Re6 {[%clk 0:00:18]} 0-1


[Site "https://www.chess.com"]

[Event "Titled Tuesday Blitz March 22 Late 2022"]
[White "Wieczorek, Oskar"]
[Black "Cappai, Davide"]
[WhiteFideId "1133950"]
[BlackFideId "813338"]
[WhiteElo "2319"]
[BlackElo "2295"]
[Result "1-0"]
[Round "05"]
[TimeControl "180+1"]
[Date "2022.03.22"]
[WhiteClock "0:00:21"]
[BlackClock "0:00:26"]

1. e4 {[%clk 0:03:00]}  c5 {[%clk 0:02:59]} 2. Nf3 {[%clk 0:03:00]}  g6 {[%clk 0:02:55]} 3. Bc4 {[%clk 0:02:49]}  Bg7 {[%clk 0:02:54]} 4. d3 {[%clk 0:02:49]}  Nc6 {[%clk 0:02:54]} 5. c3 {[%clk 0:02:49]}  d6 {[%clk 0:02:55]} 6. O-O {[%clk 0:02:48]}  e6 {[%clk 0:02:55]} 7. Bb3 {[%clk 0:02:48]}  Nge7 {[%clk 0:02:55]} 8. Re1 {[%clk 0:02:48]}  e5 {[%clk 0:02:54]} 9. Nbd2 {[%clk 0:02:46]}  O-O {[%clk 0:02:52]} 10. Nc4 {[%clk 0:02:46]}  h6 {[%clk 0:02:48]} 11. a4 {[%clk 0:02:42]}  Be6 {[%clk 0:02:48]} 12. Ne3 {[%clk 0:02:33]}  Qd7 {[%clk 0:02:48]} 13. Bxe6 {[%clk 0:02:28]}  Qxe6 {[%clk 0:02:48]} 14. a5 {[%clk 0:02:25]}  f5 {[%clk 0:02:43]} 15. Qa4 {[%clk 0:02:22]}  f4 {[%clk 0:02:37]} 16. Qc4 {[%clk 0:02:21]}  Qxc4 {[%clk 0:02:37]} 17. Nxc4 {[%clk 0:02:22]}  Rfd8 {[%clk 0:02:37]} 18. Kf1 {[%clk 0:01:58]}  g5 {[%clk 0:02:37]} 19. h3 {[%clk 0:01:58]}  Kf7 {[%clk 0:02:36]} 20. Ke2 {[%clk 0:01:58]}  Bf6 {[%clk 0:02:30]} 21. Bd2 {[%clk 0:01:55]}  Rd7 {[%clk 0:02:27]} 22. g4 {[%clk 0:01:48]}  Rh8 {[%clk 0:02:11]} 23. b4 {[%clk 0:01:48]}  Ke6 {[%clk 0:02:08]} 24. bxc5 {[%clk 0:01:38]}  dxc5 {[%clk 0:02:07]} 25. Reb1 {[%clk 0:01:38]}  Rc8 {[%clk 0:02:03]} 26. Rb5 {[%clk 0:01:35]}  Nd8 {[%clk 0:02:00]} 27. Rab1 {[%clk 0:01:33]}  Rdc7 {[%clk 0:01:44]} 28. Bc1 {[%clk 0:01:22]}  Ng6 {[%clk 0:01:39]} 29. Ba3 {[%clk 0:01:21]}  Be7 {[%clk 0:01:40]} 30. Ne1 {[%clk 0:01:03]}  Rd7 {[%clk 0:01:35]} 31. Nc2 {[%clk 0:00:53]}  Rc6 {[%clk 0:01:33]} 32. Ne1 {[%clk 0:00:49]}  Rc8 {[%clk 0:01:29]} 33. Nf3 {[%clk 0:00:49]}  Rc6 {[%clk 0:01:22]} 34. Nfd2 {[%clk 0:00:44]}  Rdc7 {[%clk 0:01:21]} 35. Nb2 {[%clk 0:00:42]}  Kd7 {[%clk 0:01:03]} 36. Ndc4 {[%clk 0:00:40]}  Kc8 {[%clk 0:01:02]} 37. Na4 {[%clk 0:00:41]}  Ne6 {[%clk 0:01:00]} 38. Nab2 {[%clk 0:00:34]}  Rd7 {[%clk 0:00:57]} 39. Nd2 {[%clk 0:00:30]}  Rdc7 {[%clk 0:00:57]} 40. Nbc4 {[%clk 0:00:30]}  Rd7 {[%clk 0:00:57]} 41. Nf3 {[%clk 0:00:30]}  Bf6 {[%clk 0:00:54]} 42. Rxb7 {[%clk 0:00:30]}  Rxb7 {[%clk 0:00:50]} 43. Ra1 {[%clk 0:00:25]}  Rb8 {[%clk 0:00:47]} 44. Bc1 {[%clk 0:00:25]}  Rb2+ {[%clk 0:00:47]} 45. Bxb2 {[%clk 0:00:25]}  Rb6 {[%clk 0:00:26]} 46. axb6 {[%clk 0:00:21]}  Nc7 {[%clk 0:00:26]} 47. bxc7 {[%clk 0:00:21]} 1-0


[Site "https://www.chess.com"]

[Event "Titled Tuesday Blitz March 22 Late 2022"]
[White "Zherebtsova, Alexandra"]
[Black "Mangialardo, Tiago Carvalho"]
[WhiteFideId "24129518"]
[BlackFideId "2130718"]
[WhiteElo "2025"]
[BlackElo "2098"]
[Result "1-0"]
[Round "05"]
[TimeControl "180+1"]
[Date "2022.03.22"]
[WhiteClock "0:00:14"]
[BlackClock "0:00:01"]

1. d4 {[%clk 0:02:30]}  d5 {[%clk 0:02:58]} 2. Nf3 {[%clk 0:02:30]}  Nf6 {[%clk 0:02:57]} 3. c4 {[%clk 0:02:29]}  e6 {[%clk 0:02:58]} 4. e3 {[%clk 0:02:30]}  Be7 {[%clk 0:02:58]} 5. Nbd2 {[%clk 0:02:29]}  O-O {[%clk 0:02:59]} 6. Bd3 {[%clk 0:02:25]}  dxc4 {[%clk 0:02:58]} 7. Nxc4 {[%clk 0:02:24]}  Nbd7 {[%clk 0:02:59]} 8. O-O {[%clk 0:02:22]}  c5 {[%clk 0:02:53]} 9. dxc5 {[%clk 0:02:14]}  Nxc5 {[%clk 0:02:54]} 10. Be2 {[%clk 0:02:14]}  Bd7 {[%clk 0:02:42]} 11. Nce5 {[%clk 0:02:10]}  Qc7 {[%clk 0:02:18]} 12. b3 {[%clk 0:01:59]}  Rfd8 {[%clk 0:02:16]} 13. Qc2 {[%clk 0:01:45]}  Rac8 {[%clk 0:02:15]} 14. Bb2 {[%clk 0:01:38]}  Nce4 {[%clk 0:01:51]} 15. Qxc7 {[%clk 0:01:26]}  Rxc7 {[%clk 0:01:51]} 16. Bd4 {[%clk 0:01:11]}  b6 {[%clk 0:01:39]} 17. Nxd7 {[%clk 0:01:08]}  Nxd7 {[%clk 0:01:37]} 18. Bb5 {[%clk 0:00:57]}  Nb8 {[%clk 0:01:13]} 19. Rac1 {[%clk 0:00:47]}  Rdc8 {[%clk 0:01:12]} 20. Rxc7 {[%clk 0:00:46]}  Rxc7 {[%clk 0:01:13]} 21. Be5 {[%clk 0:00:46]}  Bd6 {[%clk 0:01:10]} 22. Bd4 {[%clk 0:00:42]}  Bc5 {[%clk 0:00:44]} 23. Bb2 {[%clk 0:00:35]}  a6 {[%clk 0:00:43]} 24. Bd3 {[%clk 0:00:34]}  Nf6 {[%clk 0:00:40]} 25. Rc1 {[%clk 0:00:32]}  b5 {[%clk 0:00:38]} 26. Be5 {[%clk 0:00:24]}  Rc8 {[%clk 0:00:08]} 27. Bxb8 {[%clk 0:00:25]}  Rxb8 {[%clk 0:00:08]} 28. Rxc5 {[%clk 0:00:25]}  Rd8 {[%clk 0:00:09]} 29. Be2 {[%clk 0:00:24]}  Ne4 {[%clk 0:00:09]} 30. Rc2 {[%clk 0:00:23]}  g5 {[%clk 0:00:07]} 31. Kf1 {[%clk 0:00:22]}  g4 {[%clk 0:00:07]} 32. Ne5 {[%clk 0:00:23]}  f5 {[%clk 0:00:07]} 33. f3 {[%clk 0:00:19]}  Nd2+ {[%clk 0:00:03]} 34. Ke1 {[%clk 0:00:18]}  Nb1 {[%clk 0:00:01]} 35. Rc1 {[%clk 0:00:17]}  Na3 {[%clk 0:00:01]} 36. Rc6 {[%clk 0:00:15]}  g3 {[%clk 0:00:01]} 37. hxg3 {[%clk 0:00:15]}  Kg7 {[%clk 0:00:01]} 38. Rxe6 {[%clk 0:00:14]}  b4 {[%clk 0:00:02]} 39. Rxa6 {[%clk 0:00:14]}  Nc2+ {[%clk 0:00:02]} 40. Kf2 {[%clk 0:00:14]}  Rd2 {[%clk 0:00:01]} 41. Rb6 {[%clk 0:00:14]} 1-0


[Site "https://www.chess.com"]

[Event "Titled Tuesday Blitz March 22 Late 2022"]
[White "Abdrlauf, Elham"]
[Black "Andreikin, Dmitry"]
[WhiteFideId "1533533"]
[BlackFideId "4158814"]
[WhiteElo "2334"]
[BlackElo "2736"]
[Result "0-1"]
[Round "06"]
[TimeControl "180+1"]
[Date "2022.03.22"]
[WhiteClock "0:00:02"]
[BlackClock "0:01:03"]

1. e4 {[%clk 0:02:53]}  c5 {[%clk 0:02:59]} 2. Nf3 {[%clk 0:02:54]}  e6 {[%clk 0:03:00]} 3. c3 {[%clk 0:02:54]}  Nf6 {[%clk 0:02:59]} 4. e5 {[%clk 0:02:54]}  Nd5 {[%clk 0:03:00]} 5. Bc4 {[%clk 0:02:55]}  Nc6 {[%clk 0:02:53]} 6. O-O {[%clk 0:02:53]}  Nb6 {[%clk 0:02:51]} 7. Bb3 {[%clk 0:02:53]}  c4 {[%clk 0:02:48]} 8. Bc2 {[%clk 0:02:53]}  g5 {[%clk 0:02:49]} 9. d4 {[%clk 0:02:26]}  cxd3 {[%clk 0:02:48]} 10. Bxd3 {[%clk 0:02:25]}  g4 {[%clk 0:02:49]} 11. Nd4 {[%clk 0:02:21]}  Nxe5 {[%clk 0:02:48]} 12. Re1 {[%clk 0:02:16]}  d6 {[%clk 0:02:47]} 13. Bf1 {[%clk 0:02:06]}  h5 {[%clk 0:02:43]} 14. Nd2 {[%clk 0:02:06]}  Nd5 {[%clk 0:02:35]} 15. Ne4 {[%clk 0:02:03]}  Be7 {[%clk 0:02:35]} 16. c4 {[%clk 0:01:59]}  Nf6 {[%clk 0:02:34]} 17. Nxf6+ {[%clk 0:01:51]}  Bxf6 {[%clk 0:02:35]} 18. Nb5 {[%clk 0:01:52]}  O-O {[%clk 0:02:36]} 19. Nxd6 {[%clk 0:01:46]}  Bg7 {[%clk 0:02:32]} 20. Be3 {[%clk 0:01:28]}  Ng6 {[%clk 0:02:21]} 21. Nxc8 {[%clk 0:01:17]}  Rxc8 {[%clk 0:02:14]} 22. Qb3 {[%clk 0:01:14]}  b6 {[%clk 0:02:07]} 23. Rad1 {[%clk 0:01:12]}  Qf6 {[%clk 0:02:08]} 24. Qa4 {[%clk 0:01:02]}  Nh4 {[%clk 0:01:49]} 25. Qxa7 {[%clk 0:00:49]}  Nf5 {[%clk 0:01:48]} 26. Bxb6 {[%clk 0:00:35]}  Ra8 {[%clk 0:01:48]} 27. Qd7 {[%clk 0:00:26]}  Qxb2 {[%clk 0:01:43]} 28. Qb5 {[%clk 0:00:24]}  Rxa2 {[%clk 0:01:39]} 29. Qxb2 {[%clk 0:00:23]}  Rxb2 {[%clk 0:01:40]} 30. Rb1 {[%clk 0:00:22]}  Rb8 {[%clk 0:01:32]} 31. Rxb2 {[%clk 0:00:19]}  Bxb2 {[%clk 0:01:33]} 32. c5 {[%clk 0:00:19]}  Bd4 {[%clk 0:01:34]} 33. Bd3 {[%clk 0:00:19]}  Ne7 {[%clk 0:01:32]} 34. Rb1 {[%clk 0:00:14]}  Nd5 {[%clk 0:01:29]} 35. Ba7 {[%clk 0:00:06]}  Rc8 {[%clk 0:01:25]} 36. Rc1 {[%clk 0:00:05]}  Ra8 {[%clk 0:01:23]} 37. Bb6 {[%clk 0:00:05]}  Ra2 {[%clk 0:01:23]} 38. Rf1 {[%clk 0:00:05]}  Nxb6 {[%clk 0:01:18]} 39. cxb6 {[%clk 0:00:06]}  Bxb6 {[%clk 0:01:19]} 40. g3 {[%clk 0:00:06]}  Rd2 {[%clk 0:01:17]} 41. Be4 {[%clk 0:00:05]}  f5 {[%clk 0:01:17]} 42. Bg2 {[%clk 0:00:02]}  Kf7 {[%clk 0:01:17]} 43. h3 {[%clk 0:00:03]}  Kf6 {[%clk 0:01:16]} 44. hxg4 {[%clk 0:00:04]}  hxg4 {[%clk 0:01:17]} 45. Bc6 {[%clk 0:00:04]}  e5 {[%clk 0:01:16]} 46. Kg2 {[%clk 0:00:04]}  f4 {[%clk 0:01:17]} 47. gxf4 {[%clk 0:00:05]}  exf4 {[%clk 0:01:17]} 48. Bb7 {[%clk 0:00:02]}  Kg5 {[%clk 0:01:18]} 49. Ba8 {[%clk 0:00:01]}  Rc2 {[%clk 0:01:17]} 50. Be4 {[%clk 0:00:01]}  Re2 {[%clk 0:01:17]} 51. Bd5 {[%clk 0:00:02]}  Bc5 {[%clk 0:01:14]} 52. Bc6 {[%clk 0:00:02]}  Rd2 {[%clk 0:01:15]} 53. Bb7 {[%clk 0:00:02]}  Rd3 {[%clk 0:01:07]} 54. Be4 {[%clk 0:00:02]}  f3+ {[%clk 0:01:06]} 55. Kg1 {[%clk 0:00:01]}  Rd2 {[%clk 0:01:06]} 56. Bc6 {[%clk 0:00:01]}  Kf4 {[%clk 0:01:06]} 57. Bb7 {[%clk 0:00:01]}  g3 {[%clk 0:01:06]} 58. Ba8 {[%clk 0:00:01]}  g2 {[%clk 0:01:04]} 59. Rb1 {[%clk 0:00:01]}  Bxf2+ {[%clk 0:01:03]} 60. Kh2 {[%clk 0:00:02]}  g1=Q+ {[%clk 0:01:03]} 0-1


[Site "https://www.chess.com"]

[Event "Titled Tuesday Blitz March 22 Late 2022"]
[White "Al-Tarboush, Ward"]
[Black "Smirnov, Pavel"]
[WhiteFideId "7601450"]
[BlackFideId "4123425"]
[WhiteElo "2276"]
[BlackElo "2545"]
[Result "0-1"]
[Round "06"]
[TimeControl "180+1"]
[Date "2022.03.22"]
[WhiteClock "0:00:02"]
[BlackClock "0:00:11"]

1. e4 {[%clk 0:03:00]}  e5 {[%clk 0:02:59]} 2. Nf3 {[%clk 0:03:00]}  Nc6 {[%clk 0:02:58]} 3. Bb5 {[%clk 0:02:58]}  a6 {[%clk 0:02:57]} 4. Ba4 {[%clk 0:02:54]}  Nf6 {[%clk 0:02:57]} 5. O-O {[%clk 0:02:33]}  Be7 {[%clk 0:02:55]} 6. Qe2 {[%clk 0:02:32]}  b5 {[%clk 0:02:55]} 7. Bb3 {[%clk 0:02:32]}  O-O {[%clk 0:02:55]} 8. c3 {[%clk 0:02:28]}  d5 {[%clk 0:02:54]} 9. d3 {[%clk 0:02:27]}  h6 {[%clk 0:02:54]} 10. Rd1 {[%clk 0:02:23]}  Re8 {[%clk 0:02:53]} 11. Nbd2 {[%clk 0:02:23]}  Be6 {[%clk 0:02:52]} 12. Nf1 {[%clk 0:02:12]}  Qd7 {[%clk 0:02:51]} 13. Ng3 {[%clk 0:02:00]}  Rad8 {[%clk 0:02:51]} 14. Be3 {[%clk 0:01:56]}  d4 {[%clk 0:02:45]} 15. Bxe6 {[%clk 0:01:41]}  Qxe6 {[%clk 0:02:42]} 16. cxd4 {[%clk 0:01:41]}  Nxd4 {[%clk 0:02:37]} 17. Nxd4 {[%clk 0:01:41]}  exd4 {[%clk 0:02:37]} 18. Bf4 {[%clk 0:01:37]}  c5 {[%clk 0:02:35]} 19. Nf5 {[%clk 0:01:33]}  Bf8 {[%clk 0:02:34]} 20. b3 {[%clk 0:01:25]}  Kh7 {[%clk 0:02:32]} 21. Qf3 {[%clk 0:01:15]}  g6 {[%clk 0:02:32]} 22. Ng3 {[%clk 0:01:13]}  Bg7 {[%clk 0:02:32]} 23. Bd2 {[%clk 0:01:11]}  Nd7 {[%clk 0:02:29]} 24. Rac1 {[%clk 0:01:10]}  Ne5 {[%clk 0:02:27]} 25. Qe2 {[%clk 0:01:10]}  c4 {[%clk 0:02:25]} 26. bxc4 {[%clk 0:01:11]}  bxc4 {[%clk 0:02:26]} 27. dxc4 {[%clk 0:01:12]}  d3 {[%clk 0:02:26]} 28. Qf1 {[%clk 0:01:11]}  Nxc4 {[%clk 0:02:25]} 29. Bb4 {[%clk 0:01:03]}  Nb2 {[%clk 0:02:14]} 30. Rd2 {[%clk 0:00:58]}  Qxa2 {[%clk 0:02:14]} 31. Bc3 {[%clk 0:00:51]}  Bxc3 {[%clk 0:02:11]} 32. Rxc3 {[%clk 0:00:52]}  Qa5 {[%clk 0:02:11]} 33. Qc1 {[%clk 0:00:51]}  Na4 {[%clk 0:00:33]} 34. Rcxd3 {[%clk 0:00:49]}  Rxd3 {[%clk 0:00:33]} 35. Rxd3 {[%clk 0:00:49]}  Qb5 {[%clk 0:00:32]} 36. Rd5 {[%clk 0:00:38]}  Qb3 {[%clk 0:00:31]} 37. h4 {[%clk 0:00:35]}  Nc3 {[%clk 0:00:29]} 38. Rd6 {[%clk 0:00:24]}  a5 {[%clk 0:00:24]} 39. Kh2 {[%clk 0:00:13]}  Nxe4 {[%clk 0:00:22]} 40. Nxe4 {[%clk 0:00:10]}  Rxe4 {[%clk 0:00:23]} 41. g3 {[%clk 0:00:08]}  h5 {[%clk 0:00:20]} 42. Rd8 {[%clk 0:00:07]}  Qe6 {[%clk 0:00:16]} 43. Qa1 {[%clk 0:00:03]}  Qe5 {[%clk 0:00:16]} 44. Qa2 {[%clk 0:00:03]}  Qf5 {[%clk 0:00:15]} 45. Qb2 {[%clk 0:00:02]}  Qe5 {[%clk 0:00:13]} 46. Qa2 {[%clk 0:00:03]}  Kg7 {[%clk 0:00:13]} 47. Rd7 {[%clk 0:00:03]}  Qf6 {[%clk 0:00:13]} 48. Ra7 {[%clk 0:00:02]}  Re5 {[%clk 0:00:12]} 49. Ra6 {[%clk 0:00:01]}  Qxa6 {[%clk 0:00:11]} 50. Qb2 {[%clk 0:00:02]}  Qf6 {[%clk 0:00:11]} 0-1


[Site "https://www.chess.com"]